bitfinex/quotes_SOLUSD_20250416
["timestamp","ask_amount","ask_price","bid_price","bid_amount"]
[1744796327609,0.03,125.3,125.26,17.23262936]
[1744796327807,0.03,125.3,125.28,9.24965456]
[1744796329423,0.03,125.3,125.28,17.23139885]
[1744796332614,0.03,125.3,125.29,9.24965456]
[1744796332919,0.03,125.3,125.29,27.89930342]
[1744796334018,0.03,125.3,125.29,35.88078637]
[1744796334420,0.03,125.3,125.29,17.23113751]
[1744796338193,0.03,125.3,125.29,7.98148295]
[1744796339825,0.03,125.3,125.28,28.53151438]
[1744796339998,0.03,125.3,125.25,27.5766]
[1744796340194,0.03,125.3,125.26,9.24965456]
[1744796341104,0.03,125.3,125.26,7.98339453]
[1744796341329,0.03,125.3,125.26,22.43472227]
[1744796342330,0.03,125.3,125.28,14.45132774]
[1744796342717,0.03,125.3,125.25,27.94411177]
[1744796342923,0.03,125.3,125.27,14.45132774]
[1744796343318,0.03,125.3,125.28,14.45132774]
[1744796344532,0.03,125.3,125.29,7.98148295]
[1744796345835,0.03,125.3,125.29,22.43281069]
[1744796346017,0.03,125.3,125.29,33.71281069]
[1744796346407,0.03,125.3,125.29,52.36245955]
[1744796349026,1e-08,125.3,125.29,52.50462112]
[1744796351835,1e-08,125.3,125.29,52.36245955]
[1744796353132,1e-08,125.3,125.29,33.71281069]
[1744796353522,14.45132775,125.3,125.28,7.98180594]
[1744796354038,14.45132774,125.29,125.26,7.98339453]
[1744796355137,14.45132775,125.3,125.26,7.98339453]
[1744796356839,1e-08,125.3,125.27,14.45132774]
[1744796357334,1e-08,125.3,125.28,7.98212005]
[1744796357836,1e-08,125.3,125.28,22.43344779]
[1744796358041,1e-08,125.3,125.29,14.45132774]
[1744796359366,1e-08,125.3,125.29,22.43281069]
[1744796360727,1e-08,125.3,125.28,7.98181122]
[1744796360915,1e-08,125.3,125.28,22.43313896]
[1744796362736,1e-08,125.3,125.28,7.98181122]
[1744796366039,1e-08,125.3,125.27,22.43385013]
[1744796368946,1e-08,125.3,125.29,14.45132774]
[1744796369620,1e-08,125.3,125.27,27.9394155]
[1744796369821,1e-08,125.3,125.29,14.45132774]
[1744796370940,1e-08,125.3,125.29,22.43281069]
[1744796374250,1e-08,125.3,125.29,41.08245955]
[1744796374429,1e-08,125.3,125.29,41.22462112]
[1744796376550,1e-08,125.3,125.29,41.08245955]
[1744796377251,1e-08,125.3,125.29,35.87331972]
[1744796389750,1e-08,125.3,125.29,17.22367086]
[1744796393660,1e-08,125.3,125.29,7.98148295]
[1744796393876,1e-08,125.3,125.29,17.22367086]
[1744796394361,1e-08,125.3,125.29,7.98148295]
[1744796395672,1e-08,125.3,125.28,7.98187861]
[1744796395965,6.44150001,125.3,125.27,17.22494515]
[1744796396471,6.44150001,125.3,125.28,9.24218791]
[1744796397671,1e-08,125.3,125.29,17.22367086]
[1744796401873,1e-08,125.3,125.27,17.22494515]
[1744796402070,1e-08,125.3,125.28,9.24218791]
[1744796402372,1e-08,125.3,125.28,17.22388401]
[1744796403549,1e-08,125.3,125.29,9.24218791]
[1744796403956,1e-08,125.3,125.28,17.22388401]
[1744796404158,1e-08,125.3,125.28,7.9816961]
[1744796405277,1e-08,125.3,125.27,17.22462235]
[1744796409886,1e-08,125.3,125.28,9.24218791]
[1744796410292,1e-08,125.3,125.26,27.94083913]
[1744796410293,1e-08,125.3,125.27,9.24218791]
[1744796411692,1e-08,125.3,125.28,9.24218791]
[1744796412394,1e-08,125.3,125.28,17.22373974]
[1744796413189,1e-08,125.3,125.29,9.24218791]
[1744796414496,1e-08,125.3,125.29,17.22367086]
[1744796418491,1e-08,125.3,125.29,7.98148295]
[1744796419005,1e-08,125.3,125.29,17.22367086]
[1744796423504,1e-08,125.3,125.28,7.98178395]
[1744796423990,1e-08,125.3,125.28,17.22397186]
[1744796424295,1e-08,125.3,125.29,9.24218791]
[1744796424997,1e-08,125.3,125.28,17.22397186]
[1744796427699,1e-08,125.3,125.28,7.98178395]
[1744796428903,1e-08,125.3,125.28,17.22397186]
[1744796433903,1e-08,125.3,125.28,7.98178395]
[1744796438774,1e-08,125.3,125.27,7.98245053]
[1744796438981,9.24218792,125.3,125.26,7.98327834]
[1744796439180,15.89998792,125.3,125.26,7.98327834]
[1744796439680,6.65780001,125.3,125.26,17.22546625]
[1744796440007,6.65780001,125.3,125.27,9.24218791]
[1744796440197,6.65780001,125.3,125.26,17.22546625]
[1744796442504,6.65780001,125.3,125.27,9.24218791]
[1744796445123,6.65780001,125.3,125.27,17.22447394]
[1744796446001,6.65780001,125.3,125.28,9.24218791]
[1744796446206,1e-08,125.3,125.29,9.24218791]
[1744796446708,1e-08,125.3,125.29,27.89183677]
[1744796447307,1e-08,125.3,125.29,17.22367086]
[1744796453109,1e-08,125.3,125.29,28.48367086]
[1744796453311,1e-08,125.3,125.29,47.13331972]
[1744796454918,0.03,125.33,125.3,18.64964886]
[1744796455216,0.03,125.33,125.32,9.24218791]
[1744796456222,0.03,125.33,125.32,17.2217602]
[1744796462240,0.03,125.34,125.33,18.64964886]
[1744796462407,0.03,125.36,125.35,44.64964886]
[1744796462735,0.03,125.36,125.35,53.89183677]
[1744796462941,0.03,125.36,125.35,9.24218791]
[1744796463810,0.03,125.36,125.35,17.21985045]
[1744796465523,0.03,125.36,125.35,7.97766254]
[1744796465727,0.03,125.36,125.35,17.21985045]
[1744796482221,0.03,125.36,125.34,7.97808276]
[1744796482527,0.03,125.36,125.35,9.24218791]
[1744796482731,0.03,125.36,125.34,17.22027067]
[1744796482935,0.03,125.36,125.34,7.97808276]
[1744796483135,0.03,125.36,125.34,17.22027067]
[1744796484347,0.03,125.36,125.34,7.97808276]
[1744796486361,0.03,125.36,125.34,9.24218791]
[1744796488258,0.03,125.36,125.35,7.97766254]
[1744796491353,0.03,125.36,125.35,17.21985045]
[1744796491555,0.03,125.36,125.35,35.86949931]
[1744796491742,0.03,125.36,125.35,36.01166088]
[1744796491944,0.03,125.36,125.35,35.86949931]
[1744796492153,0.03,125.36,125.35,17.21985045]
[1744796493758,0.03,125.36,125.35,7.97766254]
[1744796494535,9.27218791,125.36,125.31,7.98020908]
[1744796494863,9.24218791,125.35,125.31,7.98020908]
[1744796495357,9.27218791,125.36,125.31,17.22239699]
[1744796495568,17.24948937,125.36,125.31,17.22239699]
[1744796496360,9.24218791,125.35,125.31,7.98020908]
[1744796496560,8.00730146,125.36,125.31,7.98020908]
[1744796496747,9.24218791,125.35,125.31,7.98020908]
[1744796498029,9.24218791,125.35,125.31,17.22239699]
[1744796498861,7.9592,125.34,125.31,7.98020908]
[1744796501670,7.9592,125.34,125.31,17.22239699]
[1744796502058,7.9592,125.34,125.31,7.98020908]
[1744796503768,7.9592,125.34,125.27,1.70636157]
[1744796503769,26.0,125.32,125.26,8.04629677]
[1744796503937,35.24218791,125.32,125.27,9.24218791]
[1744796504144,9.24218791,125.31,125.26,17.28848468]
[1744796505963,9.24218791,125.3,125.26,0.063]
[1744796506164,9.24218791,125.28,125.26,0.063]
[1744796507964,17.22445955,125.28,125.26,0.063]
[1744796508165,9.24218791,125.27,125.26,0.063]
[1744796510180,17.22494515,125.27,125.26,0.063]
[1744796512378,37.22494515,125.27,125.26,0.063]
[1744796512679,89.99685558,125.27,125.26,0.063]
[1744796513257,18.79181043,125.26,125.25,0.063]
[1744796513466,28.03399834,125.26,125.25,0.063]
[1744796514271,118.91739287,125.26,125.25,0.063]
[1744796514472,118.66834998,125.24,125.23,0.063]
[1744796514661,129.90834998,125.24,125.23,0.063]
[1744796516459,137.89301941,125.24,125.22,0.063]
[1744796516660,46.21093955,125.23,125.22,0.063]
[1744796516863,9.24218791,125.23,125.22,0.063]
[1744796517090,18.79181043,125.23,125.22,0.063]
[1744796517393,9.24218791,125.23,125.22,0.063]
[1744796517686,35.24218791,125.23,125.22,0.063]
[1744796518672,43.22749494,125.23,125.22,0.063]
[1744796519082,62.01930537,125.23,125.22,0.063]
[1744796519669,144.91930537,125.23,125.22,0.063]
[1744796520667,181.88805701,125.23,125.22,0.063]
[1744796520987,155.88805701,125.23,125.22,0.063]
[1744796521566,118.91930537,125.23,125.22,0.063]
[1744796521789,155.88805701,125.23,125.22,0.063]
[1744796523473,72.98805701,125.23,125.22,0.063]
[1744796523681,44.85781043,125.22,125.21,0.063]
[1744796523984,62.08594307,125.22,125.19,0.063]
[1744796524193,38.64964886,125.2,125.18,0.063]
[1744796524496,38.64964886,125.18,125.16,0.063]
[1744796524692,118.14218791,125.17,125.16,0.063]
[1744796525273,142.18254241,125.17,125.16,0.063]
[1744796525785,131.37986675,125.17,125.16,0.063]
[1744796525986,123.39073198,125.17,125.16,0.063]
[1744796528397,40.49073198,125.17,125.16,0.063]
[1744796528991,26.0,125.17,125.16,0.063]
[1744796529190,40.49073198,125.17,125.16,0.063]
[1744796530876,48.47986675,125.17,125.16,0.063]
[1744796534006,26.0,125.17,125.16,0.063]
[1744796534175,48.47986675,125.17,125.16,0.063]
[1744796534375,67.27167718,125.17,125.16,0.063]
[1744796536290,26.0,125.17,125.16,0.063]
[1744796536592,19.22861411,125.18,125.16,0.063]
[1744796536786,45.22861411,125.18,125.16,0.063]
[1744796536985,59.71934609,125.18,125.16,0.063]
[1744796537704,14.49073198,125.17,125.16,0.063]
[1744796538104,45.22861411,125.18,125.16,0.063]
[1744796538413,59.71934609,125.18,125.16,0.063]
[1744796538794,14.49073198,125.17,125.16,0.063]
[1744796545320,9.2690928,125.17,125.16,0.063]
[1744796545805,17.25822757,125.17,125.16,0.063]
[1744796548622,36.050038,125.17,125.16,0.063]
[1744796549618,17.25822757,125.17,125.16,0.063]
[1744796550004,36.050038,125.17,125.16,0.063]
[1744796551806,118.950038,125.17,125.16,0.063]
[1744796553227,156.0264092,125.17,125.16,1e-08]
[1744796553427,121.69181043,125.16,125.14,0.063]
[1744796553612,168.03727443,125.16,125.14,0.063]
[1744796553810,9.2690928,125.15,125.14,0.063]
[1744796554433,15.70488529,125.15,125.14,0.063]
[1744796554611,17.2595043,125.15,125.14,0.063]
[1744796557021,21.17170485,125.15,125.14,0.063]
[1744796558328,21.17170485,125.15,125.12,0.063]
[1744796558329,129.68286045,125.14,125.12,0.063]
[1744796558527,44.64964886,125.11,125.08,0.063]
[1744796558730,54.06090323,125.11,125.08,0.063]
[1744796560336,35.2690928,125.11,125.08,0.063]
[1744796560633,43.26205898,125.11,125.08,0.063]
[1744796561218,48.49319496,125.11,125.08,0.063]
[1744796561931,26.0,125.11,125.08,14.56322878]
[1744796562113,26.0,125.11,125.08,16.13802878]
[1744796562524,19.23192592,125.13,125.08,16.13802878]
[1744796562833,59.7321547,125.13,125.08,16.13802878]
[1744796563421,14.50022878,125.12,125.08,16.13802878]
[1744796563634,22.49256027,125.12,125.08,16.13802878]
[1744796563932,22.49256027,125.12,125.08,24.13278632]
[1744796564121,22.49256027,125.12,125.08,9.63255754]
[1744796565250,14.50022878,125.12,125.08,9.63255754]
[1744796565735,51.74022878,125.13,125.08,24.13278632]
[1744796566443,37.24,125.13,125.09,14.56322878]
[1744796566620,37.24,125.13,125.1,14.56322878]
[1744796567040,37.24,125.13,125.1,0.063]
[1744796568234,51.74022878,125.13,125.1,0.063]
[1744796569250,59.73203321,125.13,125.1,0.063]
[1744796569425,14.50022878,125.12,125.1,0.063]
[1744796570442,22.49263957,125.12,125.1,0.063]
[1744796572827,59.73212361,125.13,125.1,0.063]
[1744796574048,45.23189483,125.13,125.1,0.063]
[1744796574250,37.24,125.13,125.1,0.063]
[1744796574635,45.23171491,125.13,125.1,0.063]
[1744796574837,59.73194369,125.13,125.1,0.063]
[1744796575254,48.49194369,125.13,125.1,0.063]
[1744796575460,40.50022878,125.13,125.1,0.063]
[1744796575629,26.0,125.13,125.1,0.063]
[1744796576248,22.49158977,125.14,125.1,0.063]
[1744796577142,14.50022878,125.13,125.1,0.063]
[1744796577538,22.49218888,125.13,125.1,0.063]
[1744796578657,14.50022878,125.13,125.1,0.063]
[1744796581137,14.50022878,125.14,125.1,0.063]
[1744796581553,14.50022878,125.13,125.1,0.063]
[1744796582160,14.50022878,125.12,125.1,0.063]
[1744796583090,14.50022878,125.11,125.1,0.063]
[1744796583366,9.28008853,125.11,125.1,0.063]
[1744796584277,17.27305471,125.11,125.1,0.063]
[1744796592783,7.99296618,125.11,125.1,0.063]
[1744796592995,17.27305471,125.11,125.1,0.063]
[1744796594379,26.0,125.12,125.1,0.063]
[1744796595184,11.24,125.13,125.1,0.063]
[1744796595787,9.28008853,125.12,125.1,0.063]
[1744796595957,9.28008853,125.11,125.1,0.063]
[1744796597380,11.24,125.13,125.1,0.063]
[1744796597578,20.52008853,125.13,125.1,0.063]
[1744796598568,28.51182079,125.13,125.1,0.063]
[1744796599189,9.28008853,125.12,125.1,0.063]
[1744796599708,9.28008853,125.11,125.1,0.063]
[1744796600186,35.28008853,125.11,125.1,0.063]
[1744796600389,54.07189896,125.11,125.1,0.063]
[1744796600588,62.06486514,125.11,125.1,0.063]
[1744796605893,144.96486514,125.11,125.1,0.063]
[1744796606993,125.41336514,125.11,125.1,0.063]
[1744796610502,42.51336514,125.11,125.1,0.063]
[1744796611288,38.79181043,125.1,125.09,0.063]
[1744796611503,168.09225308,125.1,125.09,0.063]
[1744796611709,38.79181043,125.08,125.06,0.063]
[1744796611906,129.40008853,125.07,125.06,0.063]
[1744796612803,148.19189896,125.07,125.06,0.063]
[1744796613011,65.29189896,125.07,125.06,0.063]
[1744796613383,73.28742146,125.07,125.06,0.063]
[1744796615820,47.28742146,125.07,125.06,0.063]
[1744796616031,74.07189896,125.05,125.04,0.063]
[1744796618329,82.06870023,125.05,125.04,0.063]
[1744796618823,26.0,125.01,124.97,7.9619]
[1744796619024,9.28008853,124.99,124.97,7.9619]
[1744796619323,14.52499398,124.98,124.97,1.6481]
[1744796619517,14.52499398,124.98,124.97,0.063]
[1744796620013,14.52499398,124.99,124.97,0.063]
[1744796620414,14.52499398,125.0,124.97,0.063]
[1744796620621,40.52499398,125.01,124.98,1.5777]
[1744796620994,19.21894552,125.02,124.98,16.10269398]
[1744796620995,11.22,125.02,124.98,16.10269398]
[1744796621427,11.22,125.02,124.98,1.5777]
[1744796621428,25.74499398,125.02,124.98,1.5777]
[1744796622717,25.74499398,125.02,124.99,8.00064005]
[1744796623916,14.52499398,125.01,124.99,8.00064005]
[1744796624113,14.52499398,125.01,124.98,9.5788298]
[1744796624325,11.22,125.02,124.98,24.10382378]
[1744796624509,7.9955225,125.07,125.01,14.52499398]
[1744796624716,14.52499398,125.06,125.02,7.9987202]
[1744796624910,40.52499398,125.06,125.02,7.9987202]
[1744796625829,14.52499398,125.06,125.02,7.9987202]
[1744796626118,40.52499398,125.06,125.02,7.9987202]
[1744796633223,40.52499398,125.06,125.02,22.52371418]
[1744796633407,14.52499398,125.07,125.02,22.52371418]
[1744796634402,14.52499398,125.06,125.02,22.52371418]
[1744796634706,14.52499398,125.06,125.02,7.9987202]
[1744796635026,14.52499398,125.06,125.02,22.52371418]
[1744796635412,22.52066074,125.07,125.02,22.52371418]
[1744796635614,14.52499398,125.07,125.02,22.52371418]
[1744796636225,22.52054048,125.07,125.02,22.52371418]
[1744796636912,14.52499398,125.06,125.02,22.52371418]
[1744796637942,7.9955465,125.07,125.02,22.52371418]
[1744796638146,26.0,125.08,125.04,14.52499398]
[1744796638514,40.52499398,125.08,125.03,22.53509398]
[1744796639115,35.28244332,125.08,125.04,7.99744081]
[1744796639522,26.0,125.08,125.04,7.99744081]
[1744796639736,35.28244332,125.08,125.04,7.99744081]
[1744796640453,9.28244332,125.06,125.03,9.59081657]
[1744796641233,9.28244332,125.06,125.03,1.5928]
[1744796641843,9.28244332,125.05,125.02,7.99848885]
[1744796642137,9.28244332,125.04,125.02,7.99848885]
[1744796642523,9.28244332,125.03,125.0,1.5647]
[1744796643321,9.28244332,125.03,125.0,9.56452747]
[1744796643950,9.28244332,125.01,124.98,8.00115212]
[1744796645136,14.52046805,125.01,124.98,8.00115212]
[1744796645539,7.99816156,125.03,124.98,8.00115212]
[1744796645863,25.74046805,125.04,125.0,14.52046805]
[1744796646224,11.22,125.04,125.0,14.52046805]
[1744796646425,25.74046805,125.04,125.0,14.52046805]
[1744796647052,25.74046805,125.04,125.0,8.0]
[1744796647239,14.52046805,125.03,125.0,8.0]
[1744796649147,14.52046805,125.03,124.99,8.00064005]
[1744796649743,25.74046805,125.04,125.0,1.5701]
[1744796651261,25.74046805,125.04,125.0,9.56964276]
[1744796654662,25.74046805,125.04,125.0,24.09011081]
[1744796655767,11.22,125.04,125.0,44.09011081]
[1744796655954,14.52046805,125.05,125.0,44.09011081]
[1744796655955,26.0,125.07,125.03,14.52046805]
[1744796656154,11.2,125.08,125.03,1.6249]
[1744796656361,14.52046805,125.07,125.03,1.6249]
[1744796657160,14.52046805,125.06,125.03,1.6249]
[1744796657369,14.52046805,125.06,125.03,9.6224122]
[1744796658667,14.52046805,125.06,125.02,7.9987202]
[1744796659667,19.19519987,125.08,125.02,7.9987202]
[1744796659668,14.52046805,125.05,125.02,7.9987202]
[1744796659868,14.52046805,125.04,125.01,7.99918306]
[1744796660046,14.52046805,125.05,125.01,7.99918306]
[1744796663575,94.1,125.08,125.03,14.52046805]
[1744796663748,25.72046805,125.08,125.03,14.52046805]
[1744796664475,25.72046805,125.08,125.02,14.52046805]
[1744796664645,14.52046805,125.07,125.02,14.52046805]
[1744796665467,25.72046805,125.08,125.03,7.99808046]
[1744796666078,11.2,125.08,125.03,22.51854851]
[1744796666565,14.55046805,125.1,125.04,16.07506805]
[1744796666772,14.52046805,125.08,125.04,1.5546]
[1744796666977,14.52046805,125.07,125.04,1.5546]
[1744796667153,9.28382243,125.07,125.04,1.5546]
[1744796667568,7.99437487,125.09,125.04,9.55153762]
[1744796667875,9.28382243,125.08,125.04,9.55153762]
[1744796668961,9.28382243,125.07,125.04,9.55153762]
[1744796670773,9.28382243,125.07,125.04,7.99693762]
[1744796670970,9.28382243,125.07,125.03,7.99808046]
[1744796673673,9.28382243,125.06,125.03,7.99808046]
[1744796674077,9.28382243,125.06,125.02,7.99839902]
[1744796675496,9.28382243,125.04,125.01,9.60843763]
[1744796676187,9.28382243,125.04,125.01,7.99903763]
[1744796676686,9.28382243,125.04,125.0,8.0]
[1744796677286,7.99616629,125.06,125.0,8.0]
[1744796677477,9.28382243,125.04,125.0,8.0]
[1744796679278,9.28382243,125.05,125.0,17.28382243]
[1744796681894,9.28382243,125.06,125.01,9.28382243]
[1744796683591,9.28382243,125.05,125.0,37.28382243]
[1744796684078,7.99685606,125.05,125.0,8.0]
[1744796684267,82.9,125.07,125.02,9.28382243]
[1744796684467,9.28382243,125.06,125.01,9.28382243]
[1744796685489,9.28382243,125.06,125.02,7.9987202]
[1744796686081,9.28382243,125.03,124.99,8.00064005]
[1744796686279,9.28382243,125.04,124.99,17.28446248]
[1744796686990,9.28382243,125.04,124.99,8.00064005]
[1744796688398,17.28127349,125.04,124.99,8.00064005]
[1744796688891,9.28382243,125.04,124.99,17.28446248]
[1744796689515,17.28137725,125.04,124.99,8.00064005]
[1744796689817,9.28382243,125.03,124.99,8.00064005]
[1744796691218,9.28382243,125.02,124.98,20.74285964]
[1744796691522,9.28382243,125.02,124.98,9.54285964]
[1744796692111,9.28382243,125.03,124.98,18.82668207]
[1744796693900,9.28382243,125.02,124.98,9.54285964]
[1744796694301,9.28382243,125.03,124.98,18.82668207]
[1744796697227,9.28382243,125.02,124.98,9.54285964]
[1744796699833,9.28382243,125.01,124.98,1.5419]
[1744796700003,9.28382243,125.0,124.97,8.064631]
[1744796700207,9.28382243,125.01,124.97,8.064631]
[1744796701636,9.28382243,125.0,124.97,8.064631]
[1744796701840,9.28382243,124.98,124.97,0.063]
[1744796703929,20.48382243,125.01,124.97,9.34682243]
[1744796704229,20.48382243,125.01,124.97,0.063]
[1744796704431,9.28382243,125.0,124.97,0.063]
[1744796705230,9.28382243,125.0,124.97,8.06492046]
[1744796705635,20.48382243,125.01,124.97,8.06492046]
[1744796705835,82.9,125.04,124.99,9.28382243]
[1744796706038,9.28382243,125.04,124.99,9.28382243]
[1744796706212,57.2,125.05,124.99,9.28382243]
[1744796706411,9.28382243,125.04,124.99,9.28382243]
[1744796706829,20.48382243,125.05,125.0,9.28382243]
[1744796707035,11.2,125.05,125.01,9.28382243]
[1744796707244,11.2,125.05,125.02,7.9987202]
[1744796707530,102.9,125.07,125.02,17.28254263]
[1744796707531,9.28382243,125.07,125.02,17.28254263]
[1744796707834,103.38382243,125.09,125.05,9.28382243]
[1744796708039,11.2,125.09,125.05,9.28382243]
[1744796708224,28.4782016,125.09,125.04,9.28382243]
[1744796708422,9.28382243,125.08,125.04,9.28382243]
[1744796708635,9.28382243,125.08,125.03,9.28382243]
[1744796709234,9.28382243,125.08,125.04,7.99744081]
[1744796709425,9.28382243,125.07,125.03,9.28382243]
[1744796709625,9.28382243,125.07,125.02,9.28382243]
[1744796710536,9.28382243,125.07,125.02,17.28203755]
[1744796711223,9.28382243,125.06,125.02,7.99821512]
[1744796712044,9.28382243,125.05,125.02,7.99821512]
[1744796712217,9.28382243,125.05,125.01,23.47237041]
[1744796712536,9.28382243,125.05,125.01,14.18854798]
[1744796712741,9.28382243,125.05,125.01,23.47237041]
[1744796712941,9.28382243,125.06,125.02,9.28382243]
[1744796714231,9.28382243,125.06,125.02,17.28209779]
[1744796714953,43.27964811,125.07,125.02,17.28209779]
[1744796715123,35.28382243,125.07,125.02,17.28209779]
[1744796715642,7.99518589,125.08,125.03,9.28382243]
[1744796715943,17.27900832,125.08,125.03,9.28382243]
[1744796716557,9.28382243,125.07,125.04,7.99744081]
[1744796717339,9.28382243,125.07,125.03,17.28159508]
[1744796717545,9.28382243,125.06,125.03,7.99777265]
[1744796717841,9.28382243,125.06,125.02,7.9987202]
[1744796718336,9.28382243,125.05,125.02,7.9987202]
[1744796718731,9.28382243,125.05,125.01,7.99936005]
[1744796719122,17.28071498,125.05,125.01,7.99936005]
[1744796719329,9.28382243,125.04,125.0,28.48355722]
[1744796719523,9.28382243,125.05,125.0,17.28355722]
[1744796720755,129.68762827,125.07,125.01,9.28382243]
[1744796720928,9.28382243,125.06,125.01,9.28382243]
[1744796721241,9.28382243,125.05,125.0,17.28355722]
[1744796725540,9.28382243,125.03,125.0,7.99973479]
[1744796725928,9.28382243,125.03,124.99,8.00064005]
[1744796728355,39.1945165,125.09,125.03,1.6446]
[1744796728560,11.2,125.09,125.04,9.28382243]
[1744796728859,20.48382243,125.09,125.05,7.99680127]
[1744796729047,9.28382243,125.07,125.03,16.99872243]
[1744796729234,9.28382243,125.07,125.03,7.7149]
[1744796730250,9.28382243,125.07,125.03,15.71267524]
[1744796730438,9.28382243,125.08,125.03,24.99649767]
[1744796730648,39.19449836,125.09,125.04,9.28382243]
[1744796730649,20.48382243,125.09,125.04,9.28382243]
[1744796730838,9.28382243,125.08,125.03,24.99649767]
[1744796731739,28.4782129,125.09,125.04,9.28382243]
[1744796731964,28.4782129,125.09,125.05,7.99680127]
[1744796733254,20.48382243,125.09,125.05,7.99680127]
[1744796733841,11.2,125.09,125.05,17.2806237]
[1744796735556,20.48382243,125.09,125.05,7.99680127]
[1744796738947,11.2,125.09,125.05,17.2806237]
[1744796739265,0.03,125.1,125.07,9.28382243]
[1744796739463,0.03,125.1,125.06,9.28382243]
[1744796739664,0.03,125.1,125.05,7.99680127]
[1744796739665,17.30746816,125.1,125.05,7.99680127]
[1744796739966,9.28382243,125.08,125.05,7.99680127]
[1744796740139,9.28382243,125.09,125.05,7.99680127]
[1744796741364,9.28382243,125.09,125.05,17.2806237]
[1744796741667,9.28382243,125.09,125.05,7.99680127]
[1744796743269,0.03,125.1,125.06,9.28382243]
[1744796744067,9.31382243,125.1,125.06,9.28382243]
[1744796744267,9.31382243,125.1,125.05,17.2806237]
[1744796748479,17.30750175,125.1,125.05,17.2806237]
[1744796748963,9.31382243,125.1,125.05,17.2806237]
[1744796751174,0.03,125.1,125.05,17.2806237]
[1744796753198,9.31382243,125.1,125.05,17.2806237]
[1744796754395,9.31382243,125.1,125.05,7.99680127]
[1744796754396,9.28382243,125.09,125.05,7.99680127]
[1744796759386,17.30753221,125.1,125.05,17.2806237]
[1744796759690,0.03,125.1,125.07,9.28382243]
[1744796760075,0.03,125.1,125.07,17.27876352]
[1744796760389,9.28382243,125.08,125.04,7.99744081]
[1744796761559,0.03,125.1,125.05,9.28382243]
[1744796761764,0.03,125.1,125.07,9.28382243]
[1744796762092,0.03,125.1,125.07,7.99521546]
[1744796763391,9.31382243,125.1,125.04,35.28382243]
[1744796763694,9.28382243,125.08,125.04,26.0]
[1744796764491,9.28382243,125.08,125.04,33.99713258]
[1744796765191,9.28382243,125.08,125.04,7.99713258]
[1744796765491,9.28382243,125.08,125.04,17.28095501]
[1744796766786,9.28382243,125.08,125.04,7.99713258]
[1744796769368,9.28382243,125.08,125.04,17.28095501]
[1744796769975,9.28382243,125.08,125.04,7.99713258]
[1744796772302,17.27911639,125.08,125.03,18.92619076]
[1744796772482,9.28382243,125.07,125.02,7.9987202]
[1744796773698,9.28382243,125.07,125.02,17.28254263]
[1744796774499,17.2795704,125.07,125.02,17.28254263]
[1744796774796,9.28382243,125.06,125.02,7.9987202]
[1744796777804,9.28382243,125.05,125.01,7.99905999]
[1744796778002,9.28382243,125.03,125.0,7.99972019]
[1744796778178,9.28382243,125.02,124.99,8.00064005]
[1744796779104,9.28382243,125.03,124.99,8.00064005]
[1744796779514,20.0,125.05,124.98,8.00105515]
[1744796779515,26.0,125.04,124.98,8.00105515]
[1744796779716,9.28382243,124.99,124.97,0.063]
[1744796780315,9.28382243,124.98,124.97,0.063]
[1744796785602,17.28510263,124.98,124.97,0.063]
[1744796786118,67.25691306,124.98,124.97,0.063]
[1744796786306,73.48321306,124.98,124.97,0.063]
[1744796787324,77.45031374,124.98,124.97,0.063]
[1744796787907,77.45031374,124.98,124.95,0.063]
[1744796787908,46.0,124.96,124.95,0.063]
[1744796788208,26.0,124.94,124.93,0.063]
[1744796788410,35.28382243,124.94,124.93,0.063]
[1744796789029,43.28766427,124.94,124.93,0.063]
[1744796789321,82.0794747,124.94,124.93,0.063]
[1744796791531,64.64964886,124.91,124.9,0.063]
[1744796791708,85.11347129,124.91,124.9,0.063]
[1744796791908,85.25563286,124.91,124.9,0.063]
[1744796794843,46.46382243,124.91,124.9,0.063]
[1744796800126,37.18,124.91,124.9,0.063]
[1744796800327,46.46382243,124.91,124.9,0.063]
[1744796801024,20.46382243,124.91,124.9,0.063]
[1744796801425,11.18,124.91,124.9,0.063]
[1744796801721,133.52336328,124.96,124.9,9.34682243]
[1744796801936,50.62336328,124.96,124.91,9.28382243]